fUST/lending_fUST_20241022
["ID","MTS","AMOUNT","RATE_DAILY","PERIOD"]
[340626808,1729553442235,-151.0,0.00016438,2]
[340626809,1729553442244,-500.0,0.00016438,2]
[340626810,1729553442253,-607.4,0.00016438,2]
[340626811,1729553442263,-163.801736,0.00016438,2]
[340626812,1729553442272,-968.05,0.00016438,2]
[340626813,1729553442281,-151.0,0.00016438,2]
[340626814,1729553442291,-7706.67,0.00016438,2]
[340626815,1729553442300,-151.0,0.00016438,2]
[340626816,1729553442309,-151.0,0.00016438,2]
[340626817,1729553442319,-720.7,0.00016438,2]
[340626818,1729553442328,-1025.73,0.00016438,2]
[340626819,1729553442337,-472.65211352,0.00016438,2]
[340626820,1729553442346,-1034.61,0.00016438,2]
[340626821,1729553442355,-500.0,0.00016438,2]
[340626822,1729553442365,-500.0,0.00016438,2]
[340626823,1729553442374,-500.0,0.00016438,2]
[340626824,1729553442383,-1392.42,0.00016438,2]
[340626825,1729553442393,-500.0,0.00016438,2]
[340626826,1729553442402,-832.95,0.00016438,2]
[340626827,1729553442411,-500.0,0.00016438,2]
[340626828,1729553442420,-1229.24,0.00016438,2]
[340626829,1729553442429,-612.47,0.00016438,2]
[340626830,1729553442438,-715.94,0.00016438,2]
[340626831,1729553442447,-680.73,0.00016438,2]
[340626832,1729553442457,-653.8,0.00016438,2]
[340626833,1729553442466,-688.04,0.00016438,2]
[340626834,1729553442475,-903.61,0.00016438,2]
[340626835,1729553442485,-150.0,0.00016438,2]
[340626836,1729553442494,-2564.52,0.00016438,2]
[340626837,1729553442503,-500.0,0.00016438,2]
[340626838,1729553442512,-712.36,0.00016438,2]
[340626839,1729553442523,-500.0,0.00016438,2]
[340626840,1729553442532,-500.0,0.00016438,2]
[340626841,1729553442541,-760.06,0.00016438,2]
[340626842,1729553442550,-500.0,0.00016438,2]
[340626843,1729553442560,-151.0,0.00016438,2]
[340626844,1729553442569,-4229.53,0.00016438,2]
[340626845,1729553442578,-1640.98,0.00016438,2]
[340626846,1729553442588,-936.75,0.00016438,2]
[340626847,1729553442597,-500.0,0.00016438,2]
[340626848,1729553442607,-886.03,0.00016438,2]
[340626849,1729553442616,-861.59,0.00016438,2]
[340626850,1729553442626,-151.0,0.00016438,2]
[340626851,1729553442635,-151.0,0.00016438,2]
[340626852,1729553442645,-151.0,0.00016438,2]
[340626853,1729553442654,-151.0,0.00016438,2]
[340626854,1729553442663,-637.31,0.00016438,2]
[340626855,1729553442673,-151.0,0.00016438,2]
[340626856,1729553442683,-151.0,0.00016438,2]
[340626857,1729553442692,-151.0,0.00016438,2]
[340626858,1729553442701,-151.0,0.00016438,2]
[340626859,1729553442710,-23164.76,0.00016438,2]
[340626860,1729553442719,-602.005943,0.00016438,2]
[340626862,1729553442728,-1292.71,0.00016438,2]
[340626864,1729553442738,-1128.18,0.00016438,2]
[340626866,1729553442747,-602.005943,0.00016438,2]
[340626868,1729553442757,-602.005943,0.00016438,2]
[340626869,1729553442767,-602.005943,0.00016438,2]
[340626870,1729553442779,-602.005943,0.00016438,2]
[340626871,1729553442788,-602.005943,0.00016438,2]
[340626872,1729553442798,-602.005943,0.00016438,2]
[340626873,1729553442807,-602.005943,0.00016438,2]
[340626874,1729553442816,-602.005943,0.00016438,2]
[340626875,1729553442826,-500.0,0.00016438,2]
[340626876,1729553442835,-500.0,0.00016473,2]
[340626877,1729553442846,-150.112233,0.000165,2]
[340626878,1729553442857,-150.112233,0.000165,2]
[340626879,1729553442867,-150.112233,0.000165,2]
[340626880,1729553442876,-150.112233,0.000165,2]
[340626881,1729553442885,-150.0,0.0001656,2]
[340626882,1729553442894,-150.0,0.0001656,2]
[340626883,1729553442905,-527.0,0.00016561,2]
[340626884,1729553442914,-1804.0,0.00016561,2]
[340626886,1729553442924,-1152.0,0.00016561,2]
[340626887,1729553442933,-356.721835,0.00016566,2]
[340626888,1729553442943,-167.092769,0.00016566,2]
[340626889,1729553442953,-171.036754,0.00016566,2]
[340626890,1729553443141,-150.112233,0.000166,2]
[340626892,1729553443243,-150.112233,0.000166,2]
[340626893,1729553443388,-150.112233,0.000166,2]
[340626894,1729553443477,-3393.86501563,0.00016621,2]
[340626895,1729553443565,-4992.5574664,0.00016625,2]
[340626896,1729553443664,-152.0,0.0001663,2]
[340626897,1729553443778,-150.112233,0.000167,2]
[340626898,1729553443853,-150.112233,0.000167,2]
[340626899,1729553443930,-150.112233,0.000167,2]
[340626900,1729553443947,-10255.74875639,0.00016702,2]
[340626901,1729553444029,-429.10913761,0.00016702,2]
[340626909,1729553444716,-470.30864695,0.00016438,2]
[340626910,1729553444737,-131.69729605,0.00016438,2]
[340626911,1729553444747,-180.00073942,0.00016438,2]
[340626912,1729553444758,-422.00520358,0.00016438,2]
[340626913,1729553444768,-602.005943,0.00016438,2]
[340626914,1729553444779,-602.005943,0.00016438,2]
[340626915,1729553444789,-602.005943,0.00016438,2]
[340626916,1729553444799,-602.005943,0.00016438,2]
[340626917,1729553444808,-101.59051725,0.00016438,2]
[340626921,1729553446197,-500.41542575,0.00016438,2]
[340626922,1729553446206,-602.005943,0.00016438,2]
[340626923,1729553446215,-602.005952,0.00016438,2]
[340626924,1729553446225,-11701.6510833,0.00016702,2]
[340626925,1729553446234,-960.96820744,0.00016702,2]
[340626926,1729553446244,-150.0,0.00016712,2]
[340626927,1729553446254,-947.2,0.00016712,2]
[340626928,1729553446263,-273.45561089,0.00016712,2]
[340626929,1729553446272,-500.0,0.00016712,2]
[340626930,1729553446282,-670.31,0.00016712,2]
[340626931,1729553446291,-811.49,0.00016712,2]
[340626932,1729553446300,-668.88,0.00016712,2]
[340626933,1729553446310,-500.0,0.00016712,2]
[340626934,1729553446319,-500.0,0.00016712,2]
[340626935,1729553446328,-500.0,0.00016712,2]
[340626936,1729553446337,-500.0,0.00016712,2]
[340626937,1729553446346,-500.0,0.00016712,2]
[340626938,1729553446355,-742.01,0.00016712,2]
[340626939,1729553446364,-500.0,0.00016712,2]
[340626940,1729553446374,-500.0,0.00016712,2]
[340626941,1729553446383,-200.0,0.00016712,2]
[340626942,1729553446393,-500.0,0.00016712,2]
[340626943,1729553446402,-500.0,0.00016712,2]
[340626944,1729553446411,-500.0,0.00016712,2]
[340626945,1729553446420,-500.0,0.00016712,2]
[340626946,1729553446429,-500.0,0.00016712,2]
[340626947,1729553446439,-500.0,0.00016712,2]
[340626948,1729553446448,-976.22,0.00016712,2]
[340626949,1729553446458,-500.0,0.00016712,2]
[340626950,1729553446467,-500.0,0.00016712,2]
[340626951,1729553446476,-507.23,0.00016712,2]
[340626952,1729553446485,-829.02,0.00016712,2]
[340626953,1729553446494,-500.0,0.00016712,2]
[340626954,1729553446504,-985.51,0.00016712,2]
[340626955,1729553446514,-736.99,0.00016712,2]
[340626956,1729553446523,-500.0,0.00016712,2]
[340626957,1729553446532,-537.09,0.00016712,2]
[340626958,1729553446542,-500.0,0.00016712,2]
[340626959,1729553446551,-500.0,0.00016712,2]
[340626960,1729553446561,-581.43,0.00016712,2]
[340626961,1729553446570,-500.0,0.00016712,2]
[340626962,1729553446579,-500.0,0.00016712,2]
[340626963,1729553446589,-500.0,0.00016712,2]
[340626964,1729553446598,-500.0,0.00016712,2]
[340626965,1729553446608,-500.0,0.00016712,2]
[340626966,1729553446618,-500.0,0.00016712,2]
[340626967,1729553446628,-500.0,0.00016712,2]
[340626968,1729553446637,-500.0,0.00016712,2]
[340626969,1729553446646,-500.0,0.00016712,2]
[340626970,1729553446656,-555.96,0.00016712,2]
[340626971,1729553446665,-827.71,0.00016712,2]
[340626972,1729553446674,-711.4,0.00016712,2]
[340626973,1729553446684,-819.81,0.00016712,2]
[340626974,1729553446694,-594.98,0.00016712,2]
[340626975,1729553446703,-500.0,0.00016712,2]
[340626976,1729553446713,-500.0,0.00016712,2]
[340626977,1729553446722,-500.0,0.00016712,2]
[340626978,1729553446731,-500.0,0.00016712,2]
[340626979,1729553446741,-537.42,0.00016712,2]
[340626980,1729553446750,-500.0,0.00016712,2]
[340626981,1729553446760,-852.83,0.00016712,2]
[340626982,1729553446769,-500.0,0.00016712,2]
[340626983,1729553446779,-500.0,0.00016712,2]
[340626984,1729553446789,-1112.63,0.00016712,2]
[340626985,1729553446799,-500.0,0.00016712,2]
[340626986,1729553446808,-500.0,0.00016712,2]
[340626987,1729553446818,-500.0,0.00016712,2]
[340626988,1729553446827,-500.0,0.00016712,2]
[340626989,1729553446836,-500.0,0.00016712,2]
[340626990,1729553446845,-1004.02,0.00016712,2]
[340626991,1729553446854,-500.0,0.00016712,2]
[340626992,1729553446863,-500.0,0.00016712,2]
[340626993,1729553446874,-500.0,0.00016712,2]
[340626994,1729553446883,-878.12,0.00016712,2]
[340626995,1729553446892,-500.0,0.00016712,2]
[340626996,1729553446902,-1108.4,0.00016712,2]
[340626997,1729553446911,-721.99,0.00016712,2]
[340626998,1729553446919,-500.0,0.00016712,2]
[340626999,1729553446928,-902.01,0.00016712,2]
[340627000,1729553446938,-500.0,0.00016712,2]
[340627001,1729553446947,-500.0,0.00016712,2]
[340627002,1729553446957,-500.0,0.00016712,2]
[340627003,1729553446968,-380.81672391,0.00016712,2]
[340627004,1729553447203,-485.74327609,0.00016712,2]
[340627005,1729553447213,-682.35,0.00016712,2]
[340627006,1729553447222,-658.23531353,0.00016712,2]
[340627007,1729553447234,-523.56450428,0.00016712,2]
[340627008,1729553610134,564.1424211,0.0001,2]
[340627015,1729554442109,-153.77540887,0.00014558,2]
[340627016,1729554442133,-26.31509973,0.00014597,2]
[340627017,1729554452094,-273.68490027,0.00014597,2]
[340627018,1729554452116,-300.0,0.00014597,2]
[340627019,1729554452137,-2283.85259571,0.00014598,2]
[340627020,1729554452168,-7557.40497848,0.00014598,2]
[340627021,1729554491912,169.4,0.00010959,2]
[340627022,1729554550102,-246.0,0.00014597,2]
[340627023,1729554550124,-62.52346304,0.00014597,2]
[340627024,1729554550156,-237.47653696,0.00014597,2]
[340627025,1729554550179,-39.67929649,0.00014598,2]
[340627026,1729554556127,-799.00928881,0.00014598,2]
[340627027,1729554559108,-14220.05384051,0.00014598,2]
[340627028,1729554559130,-377.610718,0.00014658,2]
[340627071,1729554632403,-160.048732,0.00015017,2]
[340627073,1729554632414,-160.048732,0.00015058,2]
[340627075,1729554632424,-160.048732,0.00015099,2]
[340627077,1729554632434,-160.048732,0.0001514,2]
[340627079,1729554632445,-160.048732,0.00015182,2]
[340627081,1729554632456,-160.048732,0.00015223,2]
[340627083,1729554632466,-160.048732,0.00015264,2]
[340627086,1729554632477,-160.048732,0.00015305,2]
[340627088,1729554632490,-160.048732,0.00015346,2]
[340627089,1729554632500,-160.048732,0.00015388,2]
[340627090,1729554632510,-160.048732,0.00015429,2]
[340627091,1729554632520,-160.048732,0.0001547,2]
[340627092,1729554632529,-160.048732,0.00015511,2]
[340627093,1729554632539,-160.048732,0.00015552,2]
[340627094,1729554632549,-160.048732,0.00015593,2]
[340627095,1729554632558,-160.048732,0.00015635,2]
[340627096,1729554632568,-160.048732,0.00015676,2]
[340627105,1729554632665,-160.048732,0.00015717,2]
[340627107,1729554632675,-160.048732,0.00015758,2]
[340627110,1729554632685,-160.048732,0.00015799,2]
[340627112,1729554632694,-163.848079,0.0001589,2]
[340627114,1729554632704,-302.1785184,0.00016032,2]
[340627116,1729554632713,-300.0,0.00016048,2]
[340627118,1729554632722,-210.7185294,0.00016049,2]
[340627120,1729554632731,-210.7185294,0.00016049,2]
[340627122,1729554632740,-952.6210892,0.00016049,2]
[340627123,1729554632750,-210.7185294,0.00016049,2]
[340627125,1729554632760,-414.9392584,0.00016078,2]
[340627127,1729554632769,-210.7185294,0.00016078,2]
[340627129,1729554632781,-210.7185294,0.00016078,2]
[340627130,1729554632790,-413.9469065,0.00016078,2]
[340627131,1729554632800,-210.117447,0.00016078,2]
[340627132,1729554632810,-2404.29868069,0.00016338,2]
[340627133,1729554632820,-685.18013976,0.00016338,2]
[340627134,1729554632829,-653.79087168,0.00016418,2]
[340627135,1729554632839,-5375.02799766,0.00016418,2]
[340627136,1729554632848,-24358.9205399,0.00016418,2]
[340627137,1729554632858,-895.83799961,0.00016428,2]
[340627138,1729554632868,-4059.82008998,0.00016428,2]
[340627139,1729554632879,-4479.18999805,0.00016428,2]
[340627140,1729554632890,-20299.1004499,0.00016428,2]
[340627141,1729554632900,-509.63,0.00016438,2]
[340627142,1729554632910,-751.49,0.00016438,2]
[340627143,1729554632920,-500.0,0.00016438,2]
[340627144,1729554632929,-500.0,0.00016438,2]
[340627145,1729554632939,-500.0,0.00016438,2]
[340627146,1729554632948,-500.0,0.00016438,2]
[340627147,1729554632962,-500.0,0.00016438,2]
[340627148,1729554632972,-500.0,0.00016438,2]
[340627149,1729554632982,-500.0,0.00016438,2]
[340627150,1729554632992,-500.0,0.00016438,2]
[340627151,1729554633002,-576.785657,0.00016438,2]
[340627152,1729554633013,-500.0,0.00016438,2]
[340627153,1729554633023,-500.0,0.00016438,2]
[340627154,1729554633033,-500.0,0.00016438,2]
[340627155,1729554633043,-500.0,0.00016438,2]
[340627156,1729554633053,-500.0,0.00016438,2]
[340627157,1729554633063,-520.34,0.00016438,2]
[340627158,1729554633073,-500.0,0.00016438,2]
[340627159,1729554633083,-962.1,0.00016438,2]
[340627160,1729554633093,-500.0,0.00016438,2]
[340627161,1729554633103,-500.0,0.00016438,2]
[340627162,1729554633112,-1211.86,0.00016438,2]
[340627163,1729554633122,-561.33,0.00016438,2]
[340627164,1729554633131,-500.0,0.00016438,2]
[340627165,1729554633142,-1000.0,0.00016438,2]
[340627166,1729554633151,-694.94,0.00016438,2]
[340627167,1729554633161,-500.0,0.00016438,2]
[340627168,1729554633171,-500.0,0.00016438,2]
[340627169,1729554633182,-500.0,0.00016438,2]
[340627170,1729554633192,-500.0,0.00016438,2]
[340627171,1729554633203,-500.0,0.00016438,2]
[340627172,1729554633212,-500.0,0.00016438,2]
[340627173,1729554633222,-500.0,0.00016438,2]
[340627174,1729554633232,-682.68,0.00016438,2]
[340627175,1729554633243,-549.01,0.00016438,2]
[340627176,1729554633252,-500.0,0.00016438,2]
[340627177,1729554633262,-500.0,0.00016438,2]
[340627178,1729554633273,-500.0,0.00016438,2]
[340627179,1729554633286,-500.0,0.00016438,2]
[340627180,1729554633295,-1245.04,0.00016438,2]
[340627181,1729554633306,-527.42,0.00016438,2]
[340627182,1729554633316,-500.0,0.00016438,2]
[340627183,1729554633326,-1019.91,0.00016438,2]
[340627184,1729554633336,-500.0,0.00016438,2]
[340627185,1729554633345,-500.0,0.00016438,2]
[340627186,1729554633355,-500.0,0.00016438,2]
[340627187,1729554633365,-500.0,0.00016438,2]
[340627188,1729554633376,-500.0,0.00016438,2]
[340627189,1729554633385,-500.0,0.00016438,2]
[340627190,1729554633395,-920.35,0.00016438,2]
[340627191,1729554633404,-804.94,0.00016438,2]
[340627192,1729554633413,-500.0,0.00016438,2]
[340627193,1729554633422,-1016.03,0.00016438,2]
[340627194,1729554633432,-661.83,0.00016438,2]
[340627195,1729554633442,-826.84,0.00016438,2]
[340627196,1729554633452,-531.1,0.00016438,2]
[340627197,1729554633461,-500.0,0.00016438,2]
[340627198,1729554633471,-794.35,0.00016438,2]
[340627199,1729554633480,-500.0,0.00016438,2]
[340627200,1729554633490,-625.49,0.00016438,2]
[340627201,1729554633500,-500.0,0.00016438,2]
[340627202,1729554633510,-892.37,0.00016438,2]
[340627203,1729554633519,-500.0,0.00016438,2]
[340627204,1729554633530,-500.0,0.00016438,2]
[340627205,1729554633540,-1129.45,0.00016438,2]
[340627206,1729554633550,-500.0,0.00016438,2]
[340627207,1729554633561,-627.42,0.00016438,2]
[340627208,1729554633571,-555.05,0.00016438,2]
[340627209,1729554633580,-500.0,0.00016438,2]
[340627210,1729554633590,-858.78,0.00016438,2]
[340627211,1729554633601,-500.0,0.00016438,2]
[340627212,1729554633611,-907.81,0.00016438,2]
[340627213,1729554633620,-991.7,0.00016438,2]
[340627214,1729554633630,-896.99,0.00016438,2]
[340627215,1729554633639,-881.34,0.00016438,2]
[340627216,1729554633649,-1765.85,0.00016438,2]
[340627217,1729554633659,-501.56,0.00016438,2]
[340627218,1729554633669,-500.0,0.00016438,2]
[340627219,1729554633678,-533.87,0.00016438,2]
[340627220,1729554633689,-500.0,0.00016438,2]
[340627221,1729554633699,-500.0,0.00016438,2]
[340627222,1729554633709,-909.5,0.00016438,2]
[340627223,1729554633718,-500.0,0.00016438,2]
[340627224,1729554633728,-807.8,0.00016438,2]
[340627225,1729554633738,-500.0,0.00016438,2]
[340627226,1729554633748,-396.27638292,0.00016438,2]
[340627227,1729554633758,-500.0,0.00016438,2]
[340627228,1729554633768,-1733.03,0.00016438,2]
[340627229,1729554633778,-743.85,0.00016438,2]
[340627230,1729554633788,-463.1210578,0.00016438,2]
[340627231,1729554633798,-500.0,0.00016438,2]
[340627232,1729554633808,-650.19,0.00016438,2]
[340627233,1729554633817,-500.0,0.00016438,2]
[340627234,1729554633827,-500.0,0.00016438,2]
[340627235,1729554633837,-500.0,0.00016438,2]
[340627236,1729554633847,-748.57,0.00016438,2]
[340627237,1729554633857,-500.0,0.00016438,2]
[340627238,1729554633869,-500.0,0.00016438,2]
[340627239,1729554633881,-1131.14,0.00016438,2]
[340627240,1729554633890,-500.0,0.00016438,2]
[340627241,1729554633901,-1346.66,0.00016438,2]
[340627242,1729554633911,-500.0,0.00016438,2]
[340627243,1729554633921,-500.0,0.00016438,2]
[340627244,1729554633931,-824.29,0.00016438,2]
[340627245,1729554633940,-1178.02,0.00016438,2]
[340627246,1729554633950,-519.89,0.00016438,2]
[340627247,1729554633960,-610.02,0.00016438,2]
[340627248,1729554633970,-500.0,0.00016438,2]
[340627249,1729554633980,-180.00166382,0.00016438,2]
[340627250,1729554633990,-500.0,0.00016438,2]
[340627251,1729554633999,-500.0,0.00016438,2]
[340627252,1729554634009,-500.0,0.00016438,2]
[340627253,1729554634019,-500.0,0.00016438,2]
[340627254,1729554634028,-500.0,0.00016438,2]
[340627255,1729554634038,-552.13,0.00016438,2]
[340627256,1729554634047,-544.63,0.00016438,2]
[340627257,1729554634057,-825.69,0.00016438,2]
[340627258,1729554634067,-728.39,0.00016438,2]
[340627259,1729554634076,-610.76,0.00016438,2]
[340627260,1729554634086,-500.0,0.00016438,2]
[340627261,1729554634095,-500.0,0.00016438,2]
[340627262,1729554634105,-500.0,0.00016438,2]
[340627263,1729554634115,-730.22,0.00016438,2]
[340627264,1729554634124,-635.68,0.00016438,2]
[340627265,1729554634133,-868.27,0.00016438,2]
[340627266,1729554634143,-500.0,0.00016438,2]
[340627267,1729554634153,-614.45,0.00016438,2]
[340627268,1729554634162,-1137.18,0.00016438,2]
[340627269,1729554634173,-500.0,0.00016438,2]
[340627270,1729554634182,-656.28,0.00016438,2]
[340627271,1729554634191,-500.0,0.00016438,2]
[340627272,1729554634201,-613.14,0.00016438,2]
[340627273,1729554634211,-500.0,0.00016438,2]
[340627274,1729554634221,-500.0,0.00016438,2]
[340627275,1729554634230,-500.0,0.00016438,2]
[340627276,1729554634240,-500.0,0.00016438,2]
[340627277,1729554634249,-743.87,0.00016438,2]
[340627278,1729554634260,-710.55,0.00016438,2]
[340627279,1729554634269,-500.0,0.00016438,2]
[340627280,1729554634279,-500.0,0.00016438,2]
[340627281,1729554634288,-849.11,0.00016438,2]
[340627282,1729554634298,-1283.4,0.00016438,2]
[340627283,1729554634308,-500.0,0.00016438,2]
[340627284,1729554634318,-500.0,0.00016438,2]
[340627285,1729554634327,-500.0,0.00016438,2]
[340627286,1729554634336,-500.0,0.00016438,2]
[340627287,1729554634345,-731.99,0.00016438,2]
[340627288,1729554634355,-500.0,0.00016438,2]
[340627289,1729554634364,-685.83,0.00016438,2]
[340627290,1729554634374,-9737.17,0.00016438,2]
[340627291,1729554634383,-500.0,0.00016438,2]
[340627292,1729554634392,-314.68132585,0.00016438,2]
[340627293,1729554634402,-500.0,0.00016438,2]
[340627294,1729554634411,-500.0,0.00016438,2]
[340627295,1729554634421,-1276.72,0.00016438,2]
[340627296,1729554634430,-465.79173906,0.00016438,2]
[340627297,1729554634440,-22199.56,0.00016438,2]
[340627298,1729554634449,-500.0,0.00016438,2]
[340627299,1729554634459,-687.99,0.00016438,2]
[340627300,1729554634468,-677.92,0.00016438,2]
[340627301,1729554634477,-500.0,0.00016438,2]
[340627302,1729554634488,-1062.22,0.00016438,2]
[340627303,1729554634497,-500.0,0.00016438,2]
[340627304,1729554634507,-500.0,0.00016438,2]
[340627305,1729554634515,-4466.3,0.00016438,2]
[340627306,1729554634525,-500.0,0.00016438,2]
[340627307,1729554634535,-500.0,0.00016438,2]
[340627308,1729554634544,-680.18,0.00016438,2]
[340627309,1729554634554,-500.0,0.00016438,2]
[340627310,1729554634563,-1493.76,0.00016438,2]
[340627311,1729554634574,-768.31,0.00016438,2]
[340627312,1729554634583,-556.46,0.00016438,2]
[340627313,1729554634593,-1887.39,0.00016438,2]
[340627314,1729554634603,-500.0,0.00016438,2]
[340627315,1729554634613,-1301.3,0.00016438,2]
[340627316,1729554634622,-500.0,0.00016438,2]
[340627317,1729554634631,-690.33,0.00016438,2]
[340627318,1729554634641,-950.79,0.00016438,2]
[340627319,1729554634651,-711.46,0.00016438,2]
[340627320,1729554634661,-1526.27,0.00016438,2]
[340627321,1729554634671,-500.0,0.00016438,2]
[340627322,1729554634680,-500.0,0.00016438,2]
[340627323,1729554634689,-994.18,0.00016438,2]
[340627324,1729554634699,-500.0,0.00016438,2]
[340627325,1729554634709,-500.0,0.00016438,2]
[340627326,1729554634719,-1026.55,0.00016438,2]
[340627327,1729554634728,-200.0,0.00016438,2]
[340627328,1729554634737,-500.0,0.00016438,2]
[340627329,1729554634746,-636.91,0.00016438,2]
[340627330,1729554634755,-902.65,0.00016438,2]
[340627331,1729554634764,-1016.74,0.00016438,2]
[340627332,1729554634773,-500.0,0.00016438,2]
[340627333,1729554634783,-964.57,0.00016438,2]
[340627334,1729554634792,-777.63,0.00016438,2]
[340627335,1729554634802,-500.0,0.00016438,2]
[340627336,1729554634811,-500.0,0.00016438,2]
[340627337,1729554634821,-500.0,0.00016438,2]
[340627338,1729554634830,-500.0,0.00016438,2]
[340627339,1729554634839,-894.87,0.00016438,2]
[340627340,1729554634849,-678.57,0.00016438,2]
[340627341,1729554634859,-500.0,0.00016438,2]
[340627342,1729554634868,-848.95,0.00016438,2]
[340627343,1729554634878,-500.0,0.00016438,2]
[340627344,1729554634888,-710.31,0.00016438,2]
[340627345,1729554634898,-500.0,0.00016438,2]
[340627346,1729554634907,-500.0,0.00016438,2]
[340627347,1729554634916,-945.43,0.00016438,2]
[340627348,1729554634926,-1591.19,0.00016438,2]
[340627349,1729554634936,-500.0,0.00016438,2]
[340627350,1729554634945,-684.28,0.00016438,2]
[340627351,1729554634955,-500.0,0.00016438,2]
[340627352,1729554634965,-474.69799054,0.00016438,2]
[340627353,1729554634974,-500.0,0.00016438,2]
[340627354,1729554634984,-500.0,0.00016438,2]
[340627355,1729554634993,-500.0,0.00016438,2]
[340627356,1729554635004,-500.0,0.00016438,2]
[340627357,1729554635013,-759.93,0.00016438,2]
[340627358,1729554635022,-500.0,0.00016438,2]
[340627359,1729554635032,-500.0,0.00016438,2]
[340627360,1729554635041,-500.0,0.00016438,2]
[340627361,1729554635050,-797.95,0.00016438,2]
[340627362,1729554635060,-897.06,0.00016438,2]
[340627363,1729554635070,-903.39,0.00016438,2]
[340627364,1729554635081,-500.0,0.00016438,2]
[340627365,1729554635091,-1764.47,0.00016438,2]
[340627366,1729554635101,-1201.1,0.00016438,2]
[340627367,1729554635111,-500.0,0.00016438,2]
[340627368,1729554635120,-500.0,0.00016438,2]
[340627369,1729554635130,-1082.99,0.00016438,2]
[340627370,1729554635139,-564.83,0.00016438,2]
[340627371,1729554635148,-500.0,0.00016438,2]
[340627372,1729554635157,-500.0,0.00016438,2]
[340627373,1729554635166,-889.62,0.00016438,2]
[340627374,1729554635176,-955.09,0.00016438,2]
[340627375,1729554635185,-1014.12,0.00016438,2]
[340627376,1729554635194,-500.0,0.00016438,2]
[340627377,1729554635203,-991.5,0.00016438,2]
[340627378,1729554635214,-532.98,0.00016438,2]
[340627379,1729554635223,-2067.06,0.00016438,2]
[340627380,1729554635233,-500.0,0.00016438,2]
[340627381,1729554635242,-709.39,0.00016438,2]
[340627382,1729554635251,-500.0,0.00016438,2]
[340627383,1729554635260,-500.0,0.00016438,2]
[340627384,1729554635269,-7385.56,0.00016438,2]
[340627385,1729554635279,-500.0,0.00016438,2]
[340627386,1729554635288,-1436.03,0.00016438,2]
[340627387,1729554635298,-927.72,0.00016438,2]
[340627388,1729554635307,-2446.23,0.00016438,2]
[340627389,1729554635316,-151.0,0.00016438,2]
[340627390,1729554635326,-652.12,0.00016438,2]
[340627391,1729554635335,-586.95,0.00016438,2]
[340627392,1729554635344,-675.57,0.00016438,2]
[340627393,1729554635353,-500.0,0.00016438,2]
[340627394,1729554635363,-500.0,0.00016438,2]
[340627395,1729554635372,-690.68,0.00016438,2]
[340627396,1729554635382,-798.25,0.00016438,2]
[340627397,1729554635392,-500.0,0.00016438,2]
[340627398,1729554635400,-582.09,0.00016438,2]
[340627399,1729554635409,-758.73,0.00016438,2]
[340627400,1729554635419,-1334.41,0.00016438,2]